bitfinex-derivatives/quotes_SOLF0:USTF0_20241105
["timestamp","ask_amount","ask_price","bid_price","bid_amount"]
[1730823617206,2.9962,166.91,166.85,2.9971]
[1730823617401,14.3842108,166.94,166.83,14.3842108]
[1730823618506,14.3842108,166.94,166.87,2.9967]
[1730823619207,2.9958,166.93,166.87,2.9967]
[1730823619600,14.3842108,166.94,166.84,1.3346]
[1730823619905,3.7,166.95,166.87,14.3842108]
[1730823620303,3.7,166.95,166.9,2.9961]
[1730823621312,6.6953,166.95,166.9,2.9961]
[1730823622209,3.7,166.95,166.85,18.0842108]
[1730823622918,3.7,166.95,166.89,2.9962]
[1730823622919,6.6955,166.95,166.89,2.9962]
[1730823623115,3.7,166.95,166.89,2.9962]
[1730823624112,2.9957,166.93,166.87,2.9966]
[1730823624307,2.9957,166.93,166.85,18.0842108]
[1730823625215,2.9955,166.94,166.85,18.0842108]
[1730823625609,3.7,166.95,166.85,18.0842108]
[1730823625811,2.9957,166.93,166.88,2.9965]
[1730823626615,2.9957,166.93,166.85,18.0842108]
[1730823626811,2.9957,166.93,166.89,2.9964]
[1730823627016,2.9955,166.94,166.89,2.9964]
[1730823627219,3.7,166.96,166.89,2.9964]
[1730823627414,2.9954,166.95,166.91,2.996]
[1730823627621,2.9954,166.95,166.87,14.3842108]
[1730823628212,2.9958,166.93,166.88,2.9965]
[1730823628421,2.9958,166.93,166.87,14.3842108]
[1730823628909,2.9958,166.93,166.88,2.9964]
[1730823629314,2.9958,166.93,166.87,14.3842108]
[1730823630220,2.9958,166.93,166.89,2.9964]
[1730823630715,18.0842108,166.96,166.85,3.7]
[1730823630912,18.0842108,166.96,166.84,3.8986]
[1730823630913,14.3842108,166.94,166.84,3.8986]
[1730823631318,2.996,166.91,166.86,2.9968]
[1730823631519,2.996,166.91,166.84,3.8986]
[1730823632021,14.3842108,166.94,166.84,3.8986]
[1730823632921,3.7,166.95,166.85,14.3842108]
[1730823633426,2.9956,166.94,166.89,2.9963]
[1730823633823,2.9957,166.93,166.89,2.9963]
[1730823634529,2.9955,166.94,166.89,2.9963]
[1730823634721,18.0842108,166.96,166.9,2.9961]
[1730823634922,6.6952,166.96,166.87,14.3842108]
[1730823635119,3.7,166.96,166.87,14.3842108]
[1730823635622,2.9951,166.97,166.87,14.3842108]
[1730823635818,2.9951,166.97,166.92,2.9957]
[1730823636039,14.3842108,166.98,166.92,2.9957]
[1730823636324,6.3588,166.99,166.89,2.9963]
[1730823636325,2.9951,166.96,166.89,2.9963]
[1730823636527,14.3842108,166.99,166.87,14.3842108]
[1730823636727,2.9953,166.95,166.86,3.7]
[1730823637330,2.9951,166.96,166.86,3.7]
[1730823637829,2.9951,166.96,166.91,2.9959]
[1730823638222,2.9959,166.92,166.88,2.9965]
[1730823638526,2.9959,166.92,166.85,14.3842108]
[1730823638527,14.3842108,166.94,166.85,3.7]
[1730823639027,2.996,166.91,166.87,2.9966]
[1730823639227,14.3842108,166.94,166.85,3.7]
[1730823639448,14.3842108,166.94,166.84,3.8986]
[1730823639729,2.9959,166.92,166.88,2.9966]
[1730823641126,2.9958,166.93,166.84,7.5986]
[1730823641827,2.9958,166.93,166.88,2.9964]
[1730823642124,2.9955,166.95,166.85,14.3842108]
[1730823642320,2.9955,166.95,166.91,2.9959]
[1730823643017,3.7,166.96,166.85,14.3842108]
[1730823643221,3.7,166.96,166.87,14.3842108]
[1730823643418,6.6952,166.96,166.92,2.9957]
[1730823643623,2.9952,166.96,166.92,2.9957]
[1730823644529,14.3842108,167.09,166.91,14.3842108]
[1730823644530,1.371,167.01,166.91,14.3842108]
[1730823644730,8.27892466,167.07,166.97,14.3842108]
[1730823644731,1.2814,167.06,166.97,14.3842108]
[1730823644932,1.2814,167.06,166.97,18.0842108]
[1730823645132,1.2814,167.06,166.97,3.7]
[1730823645133,15.6656108,167.06,166.97,3.7]
[1730823645325,14.3842108,167.06,166.97,3.7]
[1730823645829,14.3842108,167.04,166.94,14.3842108]
[1730823646334,14.3842108,167.04,166.98,2.9947]
[1730823646335,2.994,167.03,166.98,2.9947]
[1730823646727,2.994,167.03,166.94,18.34169507]
[1730823647344,14.3842108,167.04,166.94,3.95748427]
[1730823647529,14.3842108,167.04,166.93,3.7]
[1730823647832,2.9947,166.99,166.93,6.95298427]
[1730823648423,14.3842108,167.01,166.92,18.3936108]
[1730823648630,2.9944,167.0,166.92,18.3936108]
[1730823649135,2.9944,167.0,166.92,22.35109507]
[1730823649521,2.9944,167.0,166.92,18.3936108]
[1730823649935,14.3842108,167.01,166.92,18.3936108]
[1730823650123,14.3842108,166.99,166.92,1.3391]
[1730823652238,2.9948,166.98,166.93,2.9955]
[1730823652632,3.7,167.01,166.92,1.3391]
[1730823652940,18.0842108,167.01,166.94,2.9953]
[1730823654333,2.9946,166.99,166.94,2.9953]
[1730823654632,18.0842108,167.01,166.94,2.9953]
[1730823655432,2.9944,167.0,166.94,2.9953]
[1730823655622,3.7,167.01,166.92,15.7233108]
[1730823655825,6.6943,167.01,166.95,2.9953]
[1730823656232,3.7,167.01,166.92,15.7233108]
[1730823656625,2.9945,167.0,166.94,2.9955]
[1730823657727,2.9945,167.0,166.95,2.9952]
[1730823657932,2.9945,167.0,166.92,15.7233108]
[1730823658334,2.9945,167.0,166.94,2.9954]
[1730823659740,2.9946,166.99,166.94,2.9954]
[1730823663642,2.9948,166.98,166.93,2.9956]
[1730823663941,14.3842108,167.0,166.92,1.3391]
[1730823664334,2.9951,166.97,166.92,4.3349]
[1730823665441,14.3842108,167.0,166.92,1.3391]
[1730823666640,14.3842108,167.0,166.93,2.9955]
[1730823667042,14.3842108,167.0,166.92,1.3391]
[1730823667447,2.9946,166.99,166.94,2.9955]
[1730823668363,2.7563,167.07,167.03,2.9938]
[1730823668539,2.7563,167.07,166.97,14.3842108]
[1730823669148,5.7495,167.07,167.01,2.9941]
[1730823670657,5.7495,167.07,166.97,14.3842108]
[1730823670658,2.7563,167.07,166.97,14.3842108]
[1730823671157,2.9935,167.05,166.97,14.3842108]
[1730823671359,2.7563,167.07,167.0,2.9944]
[1730823671661,2.9938,167.04,166.97,14.3842108]
[1730823671958,14.3842108,167.04,166.95,6.3442]
[1730823673356,2.9941,167.02,166.97,2.9948]
[1730823674054,2.9943,167.01,166.96,2.9951]
[1730823674655,14.3842108,167.04,166.95,3.68]
[1730823674862,2.7563,167.07,166.94,0.24603]
[1730823674863,14.3842108,167.02,166.94,0.24603]
[1730823675069,14.3842108,167.0,166.94,0.24603]
[1730823675266,2.9949,166.98,166.94,0.24603]
[1730823675769,2.9947,166.99,166.94,3.24143]
[1730823676067,1.3095,167.01,166.94,0.24603]
[1730823676365,4.3037,167.01,166.96,2.9951]
[1730823676571,4.3037,167.01,166.94,14.6302408]
[1730823676572,1.3095,167.01,166.94,14.6302408]
[1730823678361,4.3038,167.01,166.96,2.9951]
[1730823679969,1.3095,167.01,166.94,14.6302408]
[1730823680272,2.9946,167.0,166.95,2.9953]
[1730823681557,2.9946,167.0,166.94,0.24603]
[1730823681868,2.9946,167.0,166.96,2.9951]
[1730823682858,1.3095,167.01,166.94,0.24603]
[1730823683064,14.3842108,167.0,166.94,0.24603]
[1730823683467,17.0370108,167.0,166.94,0.24603]
[1730823683660,2.9953,166.95,166.94,0.24603]
[1730823686171,2.9953,166.95,166.89,2.9963]
[1730823687362,2.9955,166.94,166.89,2.9963]
[1730823687762,14.3842108,166.98,166.89,2.9963]
[1730823687971,2.9954,166.95,166.89,2.9963]
[1730823688165,2.9954,166.95,166.9,2.9962]
[1730823688567,18.0642108,166.99,166.88,14.3842108]
[1730823688867,18.0642108,166.99,166.92,2.9958]
[1730823689065,18.0642108,166.99,166.9,14.3842108]
[1730823689579,21.0589108,166.99,166.93,2.9956]
[1730823690263,2.9948,166.98,166.93,2.9956]
[1730823690664,18.0642108,166.99,166.91,2.9959]
[1730823690975,14.3842108,166.97,166.87,15.6683108]
[1730823691471,2.9953,166.95,166.9,2.9962]
[1730823693171,3.68,166.99,166.89,14.3842108]
[1730823693468,2.995,166.97,166.92,2.9958]
[1730823693667,2.995,166.97,166.89,14.3842108]
[1730823693872,2.9948,166.98,166.92,2.9958]
[1730823694076,2.9948,166.98,166.89,14.3842108]
[1730823694479,2.9946,166.99,166.94,2.9954]
[1730823695280,8.27892466,167.11,166.98,14.3842108]
[1730823695472,2.36346924,167.1,166.99,3.68]
[1730823695773,2.9933,167.06,166.99,3.68]
[1730823695985,14.3842108,167.08,166.99,3.68]
[1730823696174,14.3842108,167.06,166.96,14.3842108]
[1730823696369,14.3842108,167.06,166.97,3.68]
[1730823696776,2.9937,167.04,166.97,3.68]
[1730823697185,2.9937,167.04,166.98,2.9946]
[1730823699476,2.9937,167.04,166.99,2.9945]
[1730823701480,2.9935,167.05,166.96,18.0642108]
[1730823701780,14.3842108,167.06,166.96,18.0642108]
[1730823702888,2.9938,167.04,166.99,2.9944]
[1730823703388,2.9938,167.04,167.0,9.19895592]
[1730823704484,9.19895592,167.05,167.0,9.19895592]
[1730823704680,2.9935,167.06,167.01,12.19315592]
[1730823705882,2.9932,167.07,167.02,2.9939]
[1730823706480,1.315,167.12,167.03,9.19895592]
[1730823706684,12.19165592,167.1,167.04,2.9936]
[1730823706982,2.9927,167.1,167.04,9.19895592]
[1730823707182,13.47555592,167.11,167.05,2.9933]
[1730823707382,1.2841,167.11,167.01,18.04712162]
[1730823707893,2.9926,167.1,167.05,2.9934]
[1730823708187,1.2841,167.11,167.05,2.9934]
[1730823710080,1.2841,167.11,167.03,14.36712162]
[1730823710285,2.9931,167.08,167.02,2.9939]
[1730823710791,2.9931,167.08,167.03,2.9938]
[1730823710981,2.9931,167.08,167.01,14.36712162]
[1730823710982,2.96198108,167.09,167.01,14.36712162]
[1730823711180,2.96198108,167.09,166.99,3.68]
[1730823711181,2.9935,167.06,166.99,3.68]
[1730823711786,2.9932,167.07,167.02,2.994]
[1730823711986,19.33122162,167.11,167.0,14.36712162]
[1730823712992,2.9931,167.08,167.03,2.9937]
[1730823713493,4.2766,167.11,167.04,2.9936]
[1730823713697,1.315,167.12,167.02,14.36712162]
[1730823714298,15.68212162,167.12,167.02,14.36712162]
[1730823714490,14.36712162,167.12,167.02,14.36712162]
[1730823714998,2.9927,167.1,167.05,2.9934]
[1730823719394,19.34272162,167.14,167.02,14.36712162]
[1730823719599,2.9925,167.11,167.02,14.36712162]
[1730823720195,19.34272162,167.14,167.02,14.36712162]
[1730823720395,2.9924,167.12,167.02,14.36712162]
[1730823720597,2.9924,167.12,167.05,14.36712162]
[1730823722295,2.9924,167.12,167.07,2.9932]
[1730823722496,15.66272162,167.14,167.05,14.36712162]
[1730823722693,15.66272162,167.14,167.04,3.66]
[1730823722890,15.66272162,167.14,167.05,2.9934]
[1730823723105,2.9926,167.11,167.05,2.9934]
[1730823723295,15.66272162,167.14,167.05,2.9934]
[1730823723495,2.9924,167.12,167.05,2.9934]
[1730823723702,15.66272162,167.14,167.05,2.9934]
[1730823724491,15.66272162,167.14,167.04,3.66]
[1730823724693,15.66272162,167.14,167.06,2.9932]
[1730823725092,2.9926,167.11,167.06,2.9932]
[1730823726005,2.9926,167.1,167.05,2.9935]
[1730823726497,1.2956,167.14,167.07,2.9931]
[1730823727094,2.9922,167.13,167.07,2.9931]
[1730823727396,1.3287,167.16,167.1,14.36712162]
[1730823728002,1.3287,167.16,167.12,9.19602123]
[1730823728800,2.9911,167.19,167.15,9.19602123]
[1730823729195,2.9914,167.17,167.11,2.9924]
[1730823729396,2.9914,167.17,167.13,9.19602123]
[1730823730202,13.1540153,167.2,167.16,9.19602123]
[1730823730407,13.1540153,167.2,167.19,9.19602123]
[1730823731210,13.1540153,167.2,167.11,2.6753]
[1730823731211,13.1540153,167.2,167.13,2.992]
[1730823731411,13.1540153,167.2,167.17,9.19602123]
[1730823733704,16.1450153,167.2,167.14,6.6519]
[1730823734012,13.1540153,167.2,167.15,9.19602123]
[1730823734204,13.1540153,167.2,167.11,2.6753]
[1730823734205,9.19602123,167.19,167.13,9.19602123]
[1730823734606,2.9914,167.17,167.13,9.19602123]
[1730823734900,9.19602123,167.19,167.12,3.66]
[1730823735203,9.19602123,167.16,167.1,9.19602123]
[1730823735404,13.20952123,167.18,167.12,9.19602123]
[1730823735707,2.9916,167.16,167.12,9.19602123]
[1730823735906,2.6747,167.18,167.13,9.19602123]
[1730823736211,5.666,167.18,167.13,9.19602123]
[1730823736600,9.19602123,167.17,167.06,3.66]
[1730823736906,2.9917,167.15,167.11,9.19602123]
[1730823737511,9.19602123,167.17,167.11,9.19602123]
[1730823737713,2.9916,167.16,167.11,9.19602123]
[1730823739605,2.9916,167.16,167.1,2.9926]
[1730823739606,9.19602123,167.16,167.1,9.19602123]
[1730823739813,2.9918,167.15,167.1,9.19602123]
[1730823740017,9.19602123,167.16,167.1,9.19602123]
[1730823740315,2.9918,167.15,167.1,9.19602123]
[1730823740515,2.9918,167.15,167.1,12.18852123]
[1730823741119,2.9921,167.13,167.08,9.19602123]
[1730823742812,2.6747,167.18,167.05,3.66]
[1730823742813,2.6747,167.18,167.12,9.19602123]
[1730823743021,1.322,167.18,167.14,9.19602123]
[1730823743210,3.66,167.21,167.17,9.19602123]
[1730823743211,6.6507,167.21,167.17,9.19602123]
[1730823743514,10.56042123,167.22,167.03,3.922]
[1730823743515,2.6521,167.25,167.19,9.19602123]
[1730823743714,1.352,167.25,167.19,9.19602123]
[1730823744018,4.342,167.25,167.19,12.18702123]
[1730823744220,1.352,167.25,167.19,9.19602123]
[1730823744413,4.3421,167.25,167.19,12.18702123]
[1730823744616,1.352,167.25,167.19,12.18702123]
[1730823745319,1.352,167.25,167.19,2.991]
[1730823746221,2.9902,167.24,167.19,2.991]
[1730823747616,1.352,167.25,167.16,3.66]
[1730823747617,15.70899112,167.25,167.16,3.66]
[1730823748221,2.9906,167.22,167.17,2.9913]
[1730823748416,3.66,167.24,167.16,3.66]
[1730823748609,16.1450153,167.2,167.15,17.34869112]
[1730823748809,16.1450153,167.2,167.15,14.35699112]
[1730823749519,2.9911,167.19,167.15,14.35699112]
[1730823751226,2.9911,167.19,167.15,17.34869112]
[1730823751421,13.1540153,167.2,167.17,14.35699112]
[1730823752026,13.1540153,167.2,167.19,2.991]
[1730823753121,13.1540153,167.2,167.18,2.9912]
[1730823753528,13.1540153,167.2,167.17,14.35699112]
[1730823753719,13.1540153,167.2,167.17,17.34819112]
[1730823754318,13.1540153,167.2,167.18,2.9912]
[1730823755324,13.1540153,167.2,167.19,2.991]
[1730823756829,16.1450153,167.2,167.16,2.9914]
[1730823757025,13.1540153,167.2,167.16,14.35699112]
[1730823757728,13.1540153,167.2,167.18,2.9912]
[1730823758033,13.1540153,167.2,167.16,14.35699112]
[1730823759036,16.1449153,167.2,167.16,17.34849112]
[1730823759435,16.1449153,167.2,167.16,14.35699112]
[1730823760233,16.1449153,167.2,167.17,2.9914]
[1730823760234,13.1540153,167.2,167.17,2.9914]
[1730823761132,16.1449153,167.2,167.17,2.9914]
[1730823761534,13.1540153,167.2,167.17,2.9914]
[1730823762439,2.991,167.19,167.15,2.9916]
[1730823762636,2.991,167.19,167.15,17.34859112]
[1730823764537,2.9911,167.19,167.15,17.34859112]
[1730823765040,13.1540153,167.2,167.15,14.35699112]
[1730823765234,13.1540153,167.2,167.17,2.9913]
[1730823766247,13.1540153,167.2,167.16,2.9915]
[1730823766248,16.1448153,167.2,167.16,2.9915]
[1730823766839,13.1540153,167.2,167.15,14.35699112]
[1730823767041,13.1540153,167.2,167.19,2.991]
[1730823767437,13.1540153,167.2,167.19,12.17773885]
[1730823771442,13.1540153,167.2,167.19,9.18673885]
[1730823772045,3.66,167.32,167.19,9.18673885]
[1730823772246,9.18673885,167.29,167.23,9.18673885]
[1730823772440,3.66,167.31,167.23,9.18673885]
[1730823772640,2.9898,167.26,167.23,9.18673885]
[1730823772836,9.18673885,167.29,167.23,9.18673885]
[1730823773042,3.66,167.3,167.24,9.18673885]
[1730823773241,3.66,167.3,167.18,3.66]
[1730823773442,9.18673885,167.29,167.24,9.18673885]
[1730823774349,12.17613885,167.29,167.24,12.17673885]
[1730823776444,12.17613885,167.29,167.24,9.18673885]
[1730823776445,2.9894,167.28,167.24,9.18673885]
[1730823776846,12.17593885,167.29,167.24,9.18673885]
[1730823778056,2.9892,167.29,167.25,9.18673885]
[1730823780649,12.17583885,167.3,167.25,12.17663885]
[1730823781151,2.9894,167.29,167.23,2.9901]
[1730823781350,2.9894,167.29,167.19,3.7042]
[1730823781351,9.18673885,167.3,167.25,9.18673885]
[1730823781746,2.7494,167.36,167.25,9.18673885]
[1730823782057,9.18673885,167.34,167.29,9.18673885]
[1730823782357,9.18673885,167.33,167.29,9.18673885]
[1730823782743,9.18673885,167.32,167.23,3.64]
[1730823783049,6.3894,167.36,167.19,38.27937724]
[1730823783050,2.9891,167.3,167.25,12.17663885]
[1730823783850,9.18673885,167.31,167.25,9.18673885]
[1730823784054,9.18673885,167.31,167.26,9.18673885]
[1730823785551,9.18673885,167.3,167.26,9.18673885]
[1730823785857,2.9893,167.29,167.26,9.18673885]
[1730823786560,9.18673885,167.3,167.24,9.18673885]
[1730823786750,9.18673885,167.29,167.23,9.18673885]
[1730823787553,9.18673885,167.29,167.19,37.19267724]
[1730823787755,9.18673885,167.29,167.23,9.18673885]
[1730823788060,2.9897,167.27,167.23,9.18673885]
[1730823788554,2.9896,167.27,167.24,9.18673885]
[1730823788859,10.51753885,167.29,167.24,9.18673885]
[1730823789056,11.86663885,167.29,167.24,9.18673885]
[1730823790360,2.9897,167.27,167.24,9.18673885]
[1730823790557,11.86663885,167.29,167.24,9.18673885]
[1730823791757,2.9897,167.27,167.24,9.18673885]
[1730823792154,9.18673885,167.26,167.18,0.47582]
[1730823792352,9.18673885,167.26,167.2,9.18673885]
[1730823793351,2.9899,167.26,167.22,9.18673885]
[1730823793656,3.64,167.28,167.23,9.18673885]
[1730823794559,3.64,167.28,167.25,9.18673885]
[1730823794860,9.18673885,167.26,167.2,9.18673885]
[1730823795261,2.99,167.25,167.2,12.17753885]
[1730823795655,9.18673885,167.26,167.2,9.18673885]
[1730823796460,9.18673885,167.25,167.18,0.47582]
[1730823796657,9.18673885,167.25,167.19,9.18673885]
[1730823796858,2.9904,167.23,167.19,9.18673885]
[1730823797261,2.9904,167.23,167.18,3.46692]
[1730823797461,9.18673885,167.25,167.19,9.18673885]
[1730823797657,9.18673885,167.26,167.2,9.18673885]
[1730823798688,12.17663885,167.26,167.21,2.9906]
[1730823798958,9.18673885,167.26,167.21,2.9906]
[1730823799756,9.18673885,167.26,167.2,9.18673885]
[1730823799961,9.18673885,167.25,167.19,9.18673885]
[1730823800258,9.18673885,167.23,167.18,9.66255885]
[1730823800462,9.18673885,167.21,167.18,0.47582]
[1730823801357,3.64,167.22,167.18,0.47582]
[1730823801556,2.991,167.19,167.18,0.47582]
[1730823802263,2.9909,167.2,167.18,0.47582]
[1730823802960,2.9905,167.23,167.18,0.47582]
[1730823803159,3.64,167.25,167.18,0.47582]
[1730823803363,17.09082681,167.27,167.21,2.9905]
[1730823803562,6.3657,167.27,167.19,14.36512681]
[1730823804062,9.3554,167.27,167.21,2.9906]
[1730823804762,6.3657,167.27,167.19,14.36512681]
[1730823804958,6.3657,167.27,167.18,1.80162]
[1730823805663,2.9901,167.25,167.2,2.9908]
[1730823805861,6.3657,167.27,167.18,1.80162]
[1730823806859,2.9903,167.23,167.18,4.79282]
[1730823807064,6.3657,167.27,167.18,1.80162]
[1730823808765,6.3657,167.27,167.21,2.9906]
[1730823808766,2.9899,167.26,167.21,2.9906]
[1730823812169,1.3659,167.3,167.19,14.36512681]
[1730823812398,3.64,167.29,167.19,14.36512681]
[1730823812766,2.9894,167.28,167.23,2.9901]
[1730823812971,3.64,167.29,167.22,14.36512681]
[1730823813465,6.6293,167.29,167.25,2.9899]
[1730823813671,18.00512681,167.29,167.19,1.3428]
[1730823813864,2.9896,167.27,167.22,2.9905]
[1730823815168,2.9894,167.28,167.23,2.9902]
[1730823818376,18.00512681,167.29,167.2,14.36512681]
[1730823818670,2.9896,167.27,167.22,2.9904]
[1730823818867,18.00512681,167.29,167.18,19.33092681]
[1730823819072,2.9902,167.24,167.18,1.3258]
[1730823819667,14.36512681,167.27,167.18,1.3258]
[1730823819668,2.9901,167.25,167.18,4.3169]
[1730823819875,14.36512681,167.27,167.18,15.69092681]
[1730823820072,1.3807,167.3,167.2,14.36512681]
[1730823820268,2.9894,167.29,167.23,2.9903]
[1730823820465,2.5822,167.32,167.23,14.36512681]
[1730823820671,6.2222,167.32,167.23,14.36512681]
[1730823821170,2.9889,167.31,167.25,2.9899]
[1730823821764,2.9892,167.29,167.23,17.35522681]
[1730823821970,2.9892,167.29,167.23,14.36512681]
[1730823822476,2.9891,167.3,167.24,2.99]
[1730823823276,2.9891,167.3,167.25,2.9899]
[1730823826271,2.9889,167.31,167.26,2.9897]
[1730823826866,19.93612681,167.32,167.23,14.36512681]
[1730823827072,23.57612681,167.32,167.23,14.36512681]
[1730823827478,9.211,167.32,167.23,14.36512681]
[1730823827778,9.211,167.32,167.26,2.9896]
[1730823828476,9.211,167.32,167.23,14.36512681]
[1730823829580,9.211,167.32,167.26,2.9896]
[1730823830585,9.211,167.32,167.27,2.9896]
[1730823831375,14.75180962,167.32,167.27,12.17040962]
[1730823832885,2.5822,167.32,167.28,9.18080962]
[1730823833077,2.5822,167.32,167.28,12.17020962]
[1730823833684,15.80930962,167.33,167.28,12.17020962]
[1730823833985,9.18080962,167.34,167.29,9.18080962]
[1730823834186,12.16920962,167.34,167.3,2.989]
[1730823834484,4.0859,167.36,167.3,2.989]
[1730823834485,16.90670962,167.36,167.3,9.18080962]
[1730823834680,18.0,167.43,167.32,9.18080962]
[1730823834681,6.6277,167.38,167.32,9.18080962]
[1730823834891,12.82080962,167.38,167.32,9.18080962]
[1730823835199,3.64,167.38,167.33,12.16920962]
[1730823835396,3.64,167.38,167.26,2.4134]
[1730823835397,9.18080962,167.4,167.35,9.18080962]
[1730823836589,9.18080962,167.4,167.33,9.18080962]
[1730823837001,2.9875,167.39,167.33,12.16920962]
[1730823837290,2.9875,167.39,167.32,14.34944358]
[1730823838296,2.9875,167.39,167.33,2.9883]
[1730823839002,6.6273,167.4,167.34,2.9882]
[1730823839297,3.64,167.4,167.32,14.34944358]
[1730823839496,2.9876,167.38,167.33,2.9885]
[1730823840590,3.64,167.4,167.34,2.9883]
[1730823840591,2.9875,167.39,167.34,2.9883]
[1730823842301,2.9881,167.36,167.32,14.34944358]
[1730823842598,3.64,167.4,167.32,14.34944358]
[1730823843194,2.9878,167.37,167.32,17.33794358]
[1730823843697,2.9874,167.4,167.34,2.9882]
[1730823843899,3.62,167.42,167.34,2.9882]
[1730823844501,2.9876,167.38,167.32,17.33794358]
[1730823845300,2.9879,167.37,167.32,14.34944358]
[1730823846425,2.9879,167.37,167.31,2.9888]
[1730823847711,2.9879,167.37,167.32,2.9887]
[1730823848006,14.34944358,167.4,167.32,2.9887]
[1730823849309,2.9878,167.37,167.32,2.9887]
[1730823850208,1.3773,167.41,167.32,14.34944358]
[1730823850510,2.5678,167.43,167.34,14.34944358]
[1730823850812,2.5678,167.43,167.34,17.96944358]
[1730823851015,2.9869,167.42,167.37,2.9876]
[1730823851402,2.9869,167.42,167.34,17.96944358]
[1730823851403,2.5678,167.43,167.34,17.96944358]
[1730823851604,5.5546,167.43,167.37,2.9877]
[1730823851812,2.5678,167.43,167.37,2.9877]
[1730823852216,5.5546,167.43,167.34,17.96944358]
[1730823852810,2.5678,167.43,167.34,17.96944358]
[1730823854413,2.9869,167.42,167.37,2.9877]
[1730823855307,2.9869,167.42,167.38,2.9876]
[1730823855705,2.9869,167.42,167.36,14.34944358]
[1730823856614,2.9869,167.42,167.37,2.9878]
[1730823856807,2.5678,167.43,167.37,2.9878]
[1730823856808,2.9871,167.41,167.37,2.9878]
[1730823857014,2.9871,167.41,167.36,2.9879]
[1730823857402,2.9871,167.41,167.37,9.18039591]
[1730823857605,9.18039591,167.4,167.32,1.3533]
[1730823857911,1.3136,167.42,167.34,9.18039591]
[1730823858220,2.9876,167.39,167.34,12.16859591]
[1730823861016,2.9876,167.38,167.33,2.9885]
[1730823861210,2.9876,167.38,167.34,9.18039591]
[1730823861715,2.9875,167.39,167.34,12.16869591]
[1730823861903,2.9875,167.39,167.35,9.18039591]
[1730823862313,2.9876,167.38,167.35,9.18039591]
[1730823862613,9.18039591,167.4,167.35,9.18039591]
[1730823863016,2.9875,167.39,167.35,9.18039591]
[1730823864010,9.18039591,167.4,167.31,2.9887]
[1730823864011,2.9878,167.37,167.31,2.9887]
[1730823864209,2.9878,167.37,167.32,9.18039591]
[1730823865317,2.9878,167.37,167.32,12.16909591]
[1730823866918,2.988,167.36,167.31,12.16919591]
[1730823867618,12.16819591,167.37,167.32,2.9886]
[1730823868119,2.9878,167.37,167.32,2.9886]
[1730823868421,2.9878,167.37,167.33,12.16889591]
[1730823868614,3.62,167.4,167.33,12.16889591]
[1730823868809,2.9876,167.38,167.33,12.16889591]
[1730823872830,9.18039591,167.39,167.34,12.16859591]
[1730823873027,3.62,167.4,167.36,9.18039591]
[1730823873217,6.5869,167.42,167.37,12.16809591]
[1730823873417,2.5678,167.43,167.37,9.18039591]
[1730823873621,11.74819591,167.43,167.37,9.18039591]
[1730823873924,14.73499591,167.43,167.38,2.9875]
[1730823874125,11.74819591,167.43,167.37,9.18039591]
[1730823874325,14.73489591,167.43,167.38,2.9876]
[1730823874723,2.5678,167.43,167.39,9.18039591]
[1730823875026,14.73489591,167.43,167.39,9.18039591]
[1730823875327,11.74819591,167.43,167.37,9.18039591]
[1730823875823,6.6438661,167.45,167.32,3.6]
[1730823875824,3.6,167.45,167.39,9.18039591]
[1730823876125,9.18039591,167.44,167.39,9.18039591]
[1730823876820,12.16709591,167.44,167.39,12.16769591]
[1730823877730,2.9867,167.43,167.39,9.18039591]
[1730823879027,2.9867,167.43,167.39,12.16779591]
[1730823879926,12.16699591,167.44,167.39,12.16779591]
[1730823881030,9.18039591,167.44,167.34,2.5799]
[1730823881331,9.18039591,167.44,167.39,9.18039591]
[1730823883025,12.16709591,167.44,167.39,9.18039591]
[1730823883528,9.18039591,167.43,167.34,2.5799]
[1730823883827,9.18039591,167.43,167.36,9.18039591]
[1730823884035,9.18039591,167.41,167.34,2.5799]
[1730823884338,12.16759591,167.41,167.35,12.16839591]
[1730823884630,12.16759591,167.41,167.36,2.9879]
[1730823885532,12.16759591,167.41,167.35,12.16849591]